Cogmind - Beta 14 @@@ ROGUE MODE // 2024.09.28 @ 15:56:36 Player: siona Result: Core destroyed Performance ------------- Evolutions (1) 500 Regions Visited (3) 600 Robots Destroyed (44) 220 Value Destroyed (1014) 1014 Prototype IDs (3) 60 Alien Tech Used (0) 0 Bonus (0) 0 TOTAL SCORE: 2394 Bonus ------- None Cogmind --------- Core Integrity 0/400 Matter 206/300 Energy 227/280 System Corruption 5% Temperature Critical (709) Movement Treading (160) Location -9/Materials Parts ------- > --- POWER (1) -------- Heavy Ion Engine > --- PROPULSION (2) --- Light Treads Light Treads > --- UTILITY (4) ------ Medium Storage Unit Light Armor Plating Light Armor Plating > --- WEAPON (2) ------- Improved Medium Laser Advanced Beam Cannon > --- INVENTORY (10) --- Ion Engine Compact Wheel VTOL Module VTOL Module VTOL Module Medium Matter Pod (100) Signal Interpreter Advanced Beam Cannon Light Cannon Grenade Launcher Peak State ------------ > --- POWER ------------ Heavy Ion Engine > --- PROPULSION ------- Light Treads Light Treads > --- UTILITY ---------- Medium Storage Unit Light Armor Plating Light Armor Plating > --- WEAPON ----------- Improved Medium Laser Advanced Beam Cannon > --- INVENTORY -------- Ion Engine Compact Wheel VTOL Module VTOL Module VTOL Module Medium Matter Pod Signal Interpreter Advanced Beam Cannon Light Cannon Grenade Launcher [Rating: 15] Favorites ----------- Power Ion Engine Engine Ion Engine Propulsion Aluminum Leg Treads Light Treads Leg Aluminum Leg Utility Small Storage Unit Storage Small Storage Unit Protection Light Armor Plating Weapon Light Assault Rifle Energy Gun Improved Medium Laser Energy Cannon Advanced Beam Cannon Ballistic Gun Light Assault Rifle Ballistic Cannon Light Cannon Build | -11 -10 -10 -9 ------- Run | Yrd Mat Min Mat Slots Evolved 2 | . . . 2 Power . | . . . . Propulsion . | . . . . Utility 2 | . . . 2 Weapon . | . . . . Parts Attached 29 | 8 5 . 16 Power 5 | 1 2 . 2 Engine 5 | 1 2 . 2 Core . | . . . . Reactor . | . . . . Propulsion 11 | 4 2 . 5 Treads 5 | 2 . . 3 Leg 6 | 2 2 . 2 Wheel . | . . . . Hover . | . . . . Flight . | . . . . Utility 5 | 1 . . 4 Device . | . . . . Storage 2 | 1 . . 1 Processor . | . . . . Hackware . | . . . . Protection 3 | . . . 3 Artifact . | . . . . Weapon 8 | 2 1 . 5 Energy Gun 2 | . . . 2 Energy Cannon 2 | . . . 2 Ballistic Gun 3 | 2 . . 1 Ballistic Cannon 1 | . 1 . . Launcher . | . . . . Special Weapon . | . . . . Impact Weapon . | . . . . Slashing Weapon . | . . . . Piercing Weapon . | . . . . Special Melee Weapon . | . . . . Unidentified Prototypes 3 | . . . 3 Parts Lost 9 | . 1 1 7 Power 1 | . . . 1 Propulsion 4 | . . . 4 Utility 1 | . . . 1 Weapon 3 | . 1 1 1 Highest Loss Streak 4 | . 1 1 4 To Critical Strikes . | . . . . Average Slot Usage (%) 74 | . 85 80 65 Engine 10 | . 14 14 6 Treads 3 | . . . 6 Leg 20 | . 28 28 13 Storage 12 | . 14 14 11 Protection 2 | . . . 5 Energy Gun 3 | . . . 6 Energy Cannon 5 | . . . 9 Ballistic Gun 12 | . 23 9 4 Ballistic Cannon 3 | . 4 14 . Peak Build Rating 15 | 6 6 6 15 Average Rating 7 | 4 5 5 9 On Entrance 4 | . 6 6 5 Naked Turns . | . . . . Heaviest Build 31 | 13 14 14 31 Greatest Support 40 | 40 20 20 40 Greatest Overweight (x) 5 | . . . 5 Average Overweight (x) . | . . . . Largest Inventory Capacity 10 | 8 8 8 10 Average Capacity 8 | 7 8 8 9 Most Carried 10 | 2 8 8 10 Average Carried 7 | 1 7 8 8 Final Capacity 10 | 8 8 8 10 Final Carried 10 | 2 8 8 10 Class Distribution -------------------- 67% | Mutant 32% | Scavenger-Mutant Dominant Class ---------------- Mutant | -10/Materials Mutant | -10/Mines Scavenger-Mutant | -9/Materials Resources | -11 -10 -10 -9 ----------- Run | Yrd Mat Min Mat Matter Collected 849 | 245 411 . 193 Remotely . | . . . . Salvage Created 1350 | . 613 . 737 Parts 96 | . 47 . 49 Haulers Intercepted 2 | . . . 2 Recyclers Shooed 1 | . . . 1 Parts Field Recycled . | . . . . Retrieved Matter . | . . . . Parts Self-Destructed . | . . . . Prevented . | . . . . Kills | -11 -10 -10 -9 ------- Run | Yrd Mat Min Mat Combat Hostiles Destroyed 35 | . 17 . 18 Guns 21 | . 14 . 7 Cannons 14 | . 3 . 11 Classes Destroyed 8 | . 4 . 4 Worker 1 | . . . 1 Tunneler 1 | . . . 1 Hauler 2 | . . . 2 Operator 1 | . 1 . . Watcher 4 | . 2 . 2 Swarmer 14 | . 5 . 9 Grunt 16 | . 12 . 4 Sentry 5 | . . . 5 Best Kill Streak 6 | . 5 . 6 Combat Bots Only 4 | . 4 . 4 Max Kills in Single Turn 1 | . 1 . 1 Gunslinging . | . . . . Exploded . | . . . . Melee . | . . . . Uniques/NPCs Destroyed . | . . . . Combat | -11 -10 -10 -9 -------- Run | Yrd Mat Min Mat Hostile Shots Fired 258 | . 72 19 167 Missed 69 | . 20 9 40 Damage Taken 2012 | . 535 116 1361 Core 542 | . 103 . 439 Absorbed by Shields . | . . . . Core Remaining (%) 79 | 100 . 58 . Volleys Fired 121 | . 57 . 64 Largest 2 | . 2 . 2 Hottest 124 | . 55 . 124 Shots Fired 232 | . 114 . 118 Gun 159 | . 98 . 61 Cannon 73 | . 16 . 57 Launcher . | . . . . Special . | . . . . Kinetic 148 | . 114 . 34 Thermal 84 | . . . 84 Explosive . | . . . . Electromagnetic . | . . . . Robot Hit Streak 15 | . 15 . 6 Robot Miss Streak 5 | . 4 . 5 Penetration Max . | . . . . Secondary Targets . | . . . . Shots Hit Robots 138 | . 72 . 66 Core Hits 66 | . 35 . 31 Critical Kills . | . . . . Critical Parts Destroyed . | . . . . Critical Strikes 4 | . 1 . 3 Burn 3 | . . . 3 Blast 1 | . 1 . . Melee Attacks . | . . . . Impact . | . . . . Slashing . | . . . . Piercing . | . . . . Sneak Attacks . | . . . . Combat Hostiles . | . . . . Follow-up Attacks . | . . . . Damage Inflicted 1939 | . 832 . 1107 Guns 1057 | . 671 . 386 Cannons 878 | . 157 . 721 Explosions . | . . . . Melee . | . . . . Ramming 4 | . 4 . . Kinetic 998 | . 828 . 170 Thermal 937 | . . . 937 Explosive . | . . . . Electromagnetic . | . . . . Impact . | . . . . Slashing . | . . . . Piercing . | . . . . Highest Corruption 5 | . . . 5 Average Corruption 5 | . . . 5 Corruption Purged . | . . . . Corruption Blocked . | . . . . Effects 12 | . . . 12 Message Errors 5 | . . . 5 Matter Fused 2 | . . . 2 Heat Flow Errors 2 | . . . 2 Energy Discharges 1 | . . . 1 Data Loss (minor) 1 | . . . 1 Misfires 1 | . . . 1 Overload Shots . | . . . . Overflow Damage . | . . . . Projectiles . | . . . . Explosions . | . . . . Melee . | . . . . Knockbacks 5 | . 5 . . Impact . | . . . . Kinetic 5 | . 5 . . Secondary . | . . . . Self-Inflicted Damage . | . . . . Shots . | . . . . Rammed . | . . . . Targets Rammed 1 | . 1 . . Kicked 1 | . 1 . . Crushed . | . . . . Highest Temperature 709 | . 60 . 709 Average Temperature 97 | . 17 . 120 Received Heat Transfer 627 | . 213 63 351 Effects 13 | . . . 13 Shutdowns 1 | . . . 1 Energy Bleed 1 | . . . 1 Matter Decay 2 | . . . 2 Short Circuit 1 | . . . 1 Damage (major) 7 | . . . 7 Damage (core) 1 | . . . 1 Siege Activations . | . . . . Robots Corrupted . | . . . . Combat Hostiles . | . . . . Parts Fried . | . . . . Impact Corruptions . | . . . . Robots Melted . | . . . . Combat Hostiles . | . . . . Parts Melted 7 | . . . 7 Heat Transferred 1998 | . . . 1998 Parts Sabotaged . | . . . . Parts Stolen . | . . . . Parts Stripped . | . . . . Power Chain Reactions . | . . . . Alert | -11 -10 -10 -9 ------- Run | Yrd Mat Min Mat Peak Influence 344 | . 333 124 344 Initial 124 | . . 124 36 Average 178 | . 186 112 198 Maximum Alert Level 1 | . 1 . 1 Low Security (%) 62 | 100 56 100 57 Level 1 37 | . 43 . 42 Level 2 . | . . . . Level 3 . | . . . . Level 4 . | . . . . Level 5 . | . . . . High Security . | . . . . Max Security . | . . . . Squads Dispatched 6 | . 4 1 1 Investigation 3 | . 3 . . Extermination . | . . . . Reinforcement 2 | . 1 . 1 Assault 1 | . . 1 . Garrison . | . . . . Intercept . | . . . . Searches Triggered . | . . . . Construction Impeded . | . . . . Haulers Reinforced . | . . . . Active Scanning Responses . | . . . . Cargo Convoy Interrupts . | . . . . Stealth | -11 -10 -10 -9 --------- Run | Yrd Mat Min Mat Distress Signals 6 | . 3 . 3 Communications Jammed . | . . . . Distress Signals . | . . . . Times Spotted 62 | . 26 7 29 Peak Tracking Total 6 | . 4 6 6 Tactical Retreats 3 | . 1 . 2 Traps | -11 -10 -10 -9 ------- Run | Yrd Mat Min Mat Traps Triggered 2 | . 2 . . Indirectly . | . . . . Trap Hack Attempts . | . . . . Triggered . | . . . . Disarmed . | . . . . Reprogrammed . | . . . . Reused . | . . . . Traps Extracted . | . . . . Installed . | . . . . Triggered . | . . . . Machines | -11 -10 -10 -9 ---------- Run | Yrd Mat Min Mat Machines Disabled . | . . . . Max in Single Turn . | . . . . Machines Repaired . | . . . . Machines Dismantled . | . . . . Machines Sabotaged . | . . . . Overloaded Fab Kills . | . . . . Hacking | -11 -10 -10 -9 --------- Run | Yrd Mat Min Mat Machines Accessed 4 | . 2 . 2 Terminals 4 | . 2 . 2 Fabricators . | . . . . Repair Stations . | . . . . Recycling Units . | . . . . Scanalyzers . | . . . . Garrison Access . | . . . . Total Hacks 9 | . 4 . 5 Successful 5 | . 2 . 3 Failed 4 | . 2 . 2 Catastrophic 1 | . 1 . . Database Lockouts . | . . . . Manual . | . . . . Terminals 9 | . 4 . 5 Fabricators . | . . . . Repair Stations . | . . . . Recycling Units . | . . . . Scanalyzers . | . . . . Garrison Access . | . . . . Terminal Hacks 5 | . 2 . 3 Record 3 | . . . 3 Robot Analysis 2 | . 2 . . Fabricator Hacks . | . . . . Repair Station Hacks . | . . . . Recycling Unit Hacks . | . . . . Scanalyzer . | . . . . Garrison Access Hacks . | . . . . Unauthorized Hacks . | . . . . Terminals . | . . . . Fabricators . | . . . . Repair Stations . | . . . . Recycling Units . | . . . . Scanalyzers . | . . . . Garrison Access . | . . . . Data Cores Recovered . | . . . . Used . | . . . . Hacking Detections 2 | . 1 . 1 Full Trace Events 2 | . 1 . 1 Feedback Events . | . . . . Feedback Blocked . | . . . . Robot Schematics Acquired . | . . . . Robots Built . | . . . . Authchips . | . . . . Time . | . . . . Total Robot Build Rating . | . . . . Part Schematics Acquired . | . . . . Parts Built . | . . . . Authchips . | . . . . Time . | . . . . Total Part Build Rating . | . . . . Parts Repaired . | . . . . Time . | . . . . Parts Recycled . | . . . . Recycled Matter . | . . . . Retrieved Matter . | . . . . Retrieved Components . | . . . . Parts Scanalyzed . | . . . . Part Schematics Acquired . | . . . . Parts Damaged . | . . . . Bothacking | -11 -10 -10 -9 ------------ Run | Yrd Mat Min Mat Used RIF Installer . | . . . . Robots Hacked . | . . . . Non-combat . | . . . . Combat . | . . . . Robot Hacks Applied . | . . . . Relay Couplers Released . | . . . . Fabnet Peak Effective % . | . . . . Robots Rewired . | . . . . Allies Hacked . | . . . . Hacks Repelled . | . . . . Allies | -11 -10 -10 -9 -------- Run | Yrd Mat Min Mat Total Allies 1 | . . 1 . Largest Group 1 | . . 1 . Highest-Rated Group 31 | . . 31 . Highest-Rated Ally 31 | . . 31 . Total Orders . | . . . . Ally Attacks 7 | . . 7 . Total Damage 102 | . . 102 . Kills . | . . . . Allies Corrupted . | . . . . Allies Melted . | . . . . Intel | -11 -10 -10 -9 ------- Run | Yrd Mat Min Mat Robot Analysis Total 2 | . 2 . . Derelict Logs Recovered 1 | . . 1 . Drone Launches . | . . . . Drone Recoveries . | . . . . Exploration | -11 -10 -10 -9 ------------- Run | Yrd Mat Min Mat Turns Passed 1787 | 79 702 123 883 Spaces Moved 1019 | 53 387 88 491 Core 4 | 2 . . 2 Treads 139 | 6 . . 133 Legs 876 | 45 387 88 356 Wheels . | . . . . Hover . | . . . . Flight . | . . . . Fastest Speed 50 | 50 120 120 120 Average Speed 125 | 121 120 120 131 Slowest Speed 300 | 160 120 120 300 Overloaded Moves . | . . . . Propulsion Burnouts . | . . . . Robots Hopped . | . . . . Cave-ins Triggered . | . . . . Exploration Rate (%) 37 | 4 74 34 38 Regions Visited 3 Branch Regions 1 Pre-discovered Areas . | . . . . Known Exits Taken . | . . . . Unknown Exits Taken 3 | 1 1 1 . Scrap Searched . | . . . . Spaces Dug . | . . . . Terrain Destroyed . | . . . . Melee . | . . . . Projectile . | . . . . AOE . | . . . . Terrain Rammed . | . . . . Walls Destroyed . | . . . . Machines Disabled . | . . . . Actions | -11 -10 -10 -9 --------- Run | Yrd Mat Min Mat Total 1307 | 64 524 105 614 Wait 114 | . 64 18 32 Move 1016 | 52 386 87 491 Hop . | . . . . Pick Up 13 | 2 7 . 4 Fast Attach 22 | 8 . . 14 Attach 2 | . 1 . 1 Detach . | . . . . Swap 5 | . 4 . 1 Drop 13 | 2 4 . 7 Fire 121 | . 57 . 64 Melee . | . . . . Ram . | . . . . Kick 1 | . 1 . . Crush . | . . . . Escape Stasis . | . . . . Rewire . | . . . . Trap . | . . . . Miscellaneous . | . . . . Route ------- -11/Scrapyard -10/Materials (discovered 4 exits: *Mat x2 / [*Min x2]) -10/Mines -9/Materials (discovered 2 exits: [*Mat] / [*Min]) History --------- Turn | Location | Event 2 | -11/Scrapyard | Met Revision 17 28 | -11/Scrapyard | Discovered new exit (range 16) 80 | -11/Scrapyard | Entered Materials 253 | -10/Materials | Discovered new exit (range 16) 309 | -10/Materials | Build established: Mutant 360 | -10/Materials | Discovered new exit (range 11) 554 | -10/Materials | Discovered new exit (range 13) 764 | -10/Materials | Discovered new exit (range 12) 782 | -10/Materials | Entered Mines 799 | -10/Mines | Met a Derelict bent on vengeance 819 | -10/Mines | Met a Derelict testing a Signal Generator 845 | -10/Mines | Learned Materials security intel 887 | -10/Mines | Discovered new exit (range 16) 905 | -10/Mines | Entered Materials 905 | -9/Materials | Evolved 2 slots: Utility x2 1211 | -9/Materials | Build established: Scavenger-Mutant 1283 | -9/Materials | Lost 4 parts (2n1u1w) 1355 | -9/Materials | Discovered new exit (range 6) 1483 | -9/Materials | Core integrity fell below 50% 1642 | -9/Materials | Discovered new exit (range 3) 1665 | -9/Materials | Core integrity fell below 20% 1789 | -9/Materials | Core destroyed Last Messages --------------- 01783_ Overheating: Matter decay (-30). 01783_ K-01 Serf collects debris. 01783_ Destroyed Flight Unit. 01784_ Power failure, Hvy. Ion Engine shutdown. 01785_ Overheating: Matter decay (-64). 01785_ K-01 Serf destroyed. 01786_ Overheating: Med. Storage Unit damaged (-162). 01786_ Overheating: Adv. Beam Cannon damaged (-6). 01786_ Overheating: Lgt. Treads damaged (-22). 01786_ Overheating: Broken Imp. Medium Laser damaged (-9). 01787_ Overheating: Energy bleed (-47). 01787_ S-10 Pest destroyed. 01788_ Overheating: Hvy. Ion Engine damaged (-58). 01788_ Overheating: Lgt. Treads damaged (-36). 01789_ Overheating: Core damaged (-68). Map ----- +----------------------------------------------------+ | ?????????????????????????????????????????????????? | | ?????????????????????????????????????????????????? | | ?????????????????????????????????????????????????? | | ?????????????????????????????????????????????????? | | ?????????????????????????????????????############# | | ????????????????????????????????????? # | | ?????????????????????????????????????? # < | | ??????????????????????????????????????""" """ # = | | ????????????????????????????????????# """ """ + % | | ????????????????????????????????????# """ """ # | | ????????????????????????????????????# # | | ????????????????????????????????????# # | | ????????????????????????????????????# ] # | | ???????????????????????????????????############ | | ???????????????????????????????????? ## | | ??????????????????????????????????? """ """ ## | | ???????????????????????????????????? """ """ ## | | ??????????????????????????????????????"" """ ## | | ???????????????????????????????????????? ## | | ??????????????????########################+### | | ??????????????????? | | ????????????????????????# a | | ????????????????????????# | | ??????????????###########] ################## | | ??????????????# *#%[!#????????????????###+# | | ??????????????# %#@=[#????????????????????? | | ??????????????# =[+%[]#????????????????????? | | ??????????????# [=#=*=#????????????????????? | | ??????????????######+####= #????????????????????? | | ????????????????????????# #????????????????????? | | ????????????????????????# #??????????????????### | | ????????????????????????# #??????????????????# | | ????????????????????????# #??????????????????# | | ????????????????????????+ #??????????????????# " | | ????????????????????????# ??????????????????# " | | ????????????????????????# ??????????????????# " | | ????????????????????????# ???????????????????? | | ????????????????????????######???? ##+############ | | ????????????????????????????????? | | ????????????????????????????????? | | ????????????????????????????????? | | ????????????????????????????????????########### | | ??????????????????????????????????????????????# | | ??????????????????????????????????????????????# | | ??????????????????????????????????????????????# | | ??????????????????????????????????????????????# | | ??????????????????????????????????????????????# | | ??????????????????????????????????????????????# ## | | ??????????????????????????????????????????????# #? | | ??????????????????????????????????????????????# #? | +----------------------------------------------------+ Best States ------------- Heat Dissipation 28 Energy Generation 14 Energy Capacity 280 Matter Stores 300 Matter Capacity 300 Sight Range 16 Terrain Scan Density 10 Armor Coverage 300 Evasion (%) 55 Recoil Reduction 2 Item Schematics ----------------- None Robot Schematics ------------------ None Fabricated ------------ Nothing Alien Tech Used ----------------- None Achievements -------------- None Challenges ------------ None Game ------ Seed StasisSlugMount Manual? 0 Play Time 00:18:37 Cumulative 16.1 hours Start 2024.09.28 @ 15:39:56 End 2024.09.28 @ 15:56:36 Sessions 1 Manual Loads 0 Difficulty Rogue Special Mode None Game No. 33 Rogue 32 Adventurer 1 Explorer 0 Win Type - Total 0 Types 0/0/0/0/0/0/0/0/0 Lore% 12 Gallery% 18 Achievement% 17 Wizard Run 0 Options --------- Layout 1 ASCII 0 Keyboard 0 Movement Mouse Keybinds 0 Fullscreen 1 Font 32/SmallcapsGlow Map View 50x35 Zoom Use 0% Tactical HUD 1 Map Filters NONE Filters NONE Steam 1 RUN: 2860b412-343e-44e7-ac48-20693d81ec06